[Event "2026 Biel Blitz Open"]
[Site "Biel, CH"]
[Date "2026.07.19"]
[Round "9"]
[White "Marinkovic, Zoran"]
[Black "Hajduk, Tomasz"]
[Result "0-1"]
[Board "37"]
[TimeControl "180+2"]
[WhiteFideId "1346083"]
[BlackFideId "21811415"]
[WhiteElo "2037"]
[BlackElo "1791"]
[WhiteClock "0:00:11"]
[BlackClock "0:00:30"]
[Variant "Standard"]
[EndDate "2026.07.19"]
[EndTime "14:43:59"]

1. e4 {[%clk 0:03:03]}  c5 {[%clk 0:03:03]} 2. Nf3 {[%clk 0:03:03]}  d6 {[%clk 0:03:05]} 3. d4 {[%clk 0:03:04]}  cxd4 {[%clk 0:03:06]}
4. Nxd4 {[%clk 0:03:06]}  Nf6 {[%clk 0:03:07]} 5. Nc3 {[%clk 0:03:07]}  a6 {[%clk 0:03:08]} 6. Bg5 {[%clk 0:03:08]}  e6 {[%clk 0:03:09]}
7. f4 {[%clk 0:03:09]}  Be7 {[%clk 0:03:09]} 8. Qf3 {[%clk 0:03:10]}  Qc7 {[%clk 0:03:08]} 9. O-O-O {[%clk 0:03:10]}  b5 {[%clk 0:03:09]}
10. g4 {[%clk 0:02:59]}  Bb7 {[%clk 0:03:10]} 11. Bxf6 {[%clk 0:02:52]}  Bxf6 {[%clk 0:03:10]} 12. g5 {[%clk 0:02:39]}  Bxd4 {[%clk 0:03:11]}
13. Rxd4 {[%clk 0:02:40]}  Nc6 {[%clk 0:03:03]} 14. Rd2 {[%clk 0:02:34]}  O-O {[%clk 0:03:00]} 15. Bg2 {[%clk 0:02:21]}  b4 {[%clk 0:02:57]}
16. Ne2 {[%clk 0:02:11]}  Rfc8 {[%clk 0:02:58]} 17. f5 {[%clk 0:01:47]}  Ne5 {[%clk 0:02:57]} 18. Qg3 {[%clk 0:01:43]}  exf5 {[%clk 0:02:27]}
19. Nd4 {[%clk 0:01:19]}  fxe4 {[%clk 0:02:15]} 20. Re1 {[%clk 0:01:14]}  Nc4 {[%clk 0:02:06]} 21. Rde2 {[%clk 0:01:02]}  e3 {[%clk 0:01:58]}
22. Bxb7 {[%clk 0:00:59]}  Qxb7 {[%clk 0:01:58]} 23. Nf5 {[%clk 0:00:57]}  Qe4 {[%clk 0:01:51]} 24. Nh4 {[%clk 0:00:42]}  Qd4 {[%clk 0:01:36]}
25. c3 {[%clk 0:00:31]}  bxc3 {[%clk 0:01:35]} 26. b3 {[%clk 0:00:29]}  Qd2+ {[%clk 0:01:20]} 27. Rxd2 {[%clk 0:00:29]}  exd2+ {[%clk 0:01:14]}
28. Kd1 {[%clk 0:00:18]}  dxe1=Q+ {[%clk 0:01:08]} 29. Qxe1 {[%clk 0:00:16]}  Na3 {[%clk 0:01:02]} 30. Nf5 {[%clk 0:00:15]}  Re8 {[%clk 0:00:48]}
31. Qxc3 {[%clk 0:00:15]}  Re5 {[%clk 0:00:38]} 32. Nxd6 {[%clk 0:00:13]}  Rd5+ {[%clk 0:00:38]} 33. Ke2 {[%clk 0:00:07]}  Rxd6 {[%clk 0:00:39]}
34. Qb4 {[%clk 0:00:08]}  Re6+ {[%clk 0:00:39]} 35. Kf3 {[%clk 0:00:08]}  Nb5 {[%clk 0:00:40]} 36. a4 {[%clk 0:00:08]}  Nd6 {[%clk 0:00:39]}
37. h4 {[%clk 0:00:08]}  Rae8 {[%clk 0:00:40]} 38. a5 {[%clk 0:00:08]}  Re3+ {[%clk 0:00:40]} 39. Kf2 {[%clk 0:00:08]}  R3e4 {[%clk 0:00:35]}
40. Qxd6 {[%clk 0:00:08]}  Re2+ {[%clk 0:00:30]} 41. Kf3 {[%clk 0:00:09]}  R8e3+ {[%clk 0:00:31]} 42. Kf4 {[%clk 0:00:10]}  Re4+ {[%clk 0:00:30]}
43. Kf5 {[%clk 0:00:11]}  g6+ {[%clk 0:00:30]} 0-1

[Event "2026 Biel Blitz Open"]
[Site "Biel, CH"]
[Date "2026.07.19"]
[Round "9"]
[White "Damen, Josephine"]
[Black "Ragios, Konstantinos"]
[Result "1-0"]
[Board "38"]
[TimeControl "180+2"]
[WhiteFideId "1074369"]
[BlackFideId "4210484"]
[WhiteElo "1766"]
[BlackElo "1957"]
[WhiteTitle "WCM"]
[WhiteClock "0:02:26"]
[BlackClock "0:00:39"]
[Variant "Standard"]
[EndDate "2026.07.19"]
[EndTime "14:35:10"]

1. e4 {[%clk 0:03:02]}  e5 {[%clk 0:03:04]} 2. Nf3 {[%clk 0:03:03]}  Nc6 {[%clk 0:03:05]} 3. Bc4 {[%clk 0:03:04]}  Bc5 {[%clk 0:03:02]}
4. c3 {[%clk 0:03:05]}  Nf6 {[%clk 0:03:00]} 5. d4 {[%clk 0:03:06]}  exd4 {[%clk 0:03:01]} 6. cxd4 {[%clk 0:03:07]}  Bb4+ {[%clk 0:03:02]}
7. Nbd2 {[%clk 0:03:08]}  Nxe4 {[%clk 0:02:18]} 8. d5 {[%clk 0:03:09]}  Ne7 {[%clk 0:02:16]} 9. O-O {[%clk 0:03:05]}  Nxd2 {[%clk 0:02:16]}
10. Bxd2 {[%clk 0:03:06]}  Bxd2 {[%clk 0:02:11]} 11. d6 {[%clk 0:03:07]}  Bb4 {[%clk 0:01:53]} 12. dxe7 {[%clk 0:03:01]}  Bxe7 {[%clk 0:01:52]}
13. Ne5 {[%clk 0:02:58]}  O-O {[%clk 0:01:43]} 14. Qb3 {[%clk 0:02:59]}  Qe8 {[%clk 0:01:32]} 15. Rfe1 {[%clk 0:02:56]}  d6 {[%clk 0:01:30]}
16. Nxf7 {[%clk 0:02:54]}  Rxf7 {[%clk 0:01:30]} 17. Bxf7+ {[%clk 0:02:54]}  Qxf7 {[%clk 0:01:21]} 18. Rxe7 {[%clk 0:02:54]}  Qxb3 {[%clk 0:01:14]}
19. axb3 {[%clk 0:02:55]}  c6 {[%clk 0:00:49]} 20. Re8+ {[%clk 0:02:32]}  Kf7 {[%clk 0:00:46]} 21. Rae1 {[%clk 0:02:32]}  a5 {[%clk 0:00:38]}
22. R1e7+ {[%clk 0:02:27]}  Kf6 {[%clk 0:00:39]} 23. Rc7 {[%clk 0:02:26]} 1-0

[Event "2026 Biel Blitz Open"]
[Site "Biel, CH"]
[Date "2026.07.19"]
[Round "9"]
[White "Tcheau, Alain"]
[Black "Jehnichen, Kai"]
[Result "0-1"]
[Board "39"]
[TimeControl "180+2"]
[WhiteFideId "1306014"]
[BlackFideId "24684333"]
[WhiteElo "1777"]
[BlackElo "1952"]
[WhiteClock "0:00:17"]
[BlackClock "0:02:18"]
[Variant "Standard"]
[EndDate "2026.07.19"]
[EndTime "14:42:47"]

1. h3 {[%clk 0:03:02]}  e5 {[%clk 0:02:57]} 2. c3 {[%clk 0:03:03]}  d5 {[%clk 0:02:56]} 3. d4 {[%clk 0:03:04]}  e4 {[%clk 0:02:56]}
4. Bf4 {[%clk 0:03:05]}  Bd6 {[%clk 0:02:57]} 5. Bxd6 {[%clk 0:03:06]}  Qxd6 {[%clk 0:02:56]} 6. e3 {[%clk 0:03:07]}  Nf6 {[%clk 0:02:54]}
7. Ne2 {[%clk 0:03:08]}  O-O {[%clk 0:02:54]} 8. Nd2 {[%clk 0:03:09]}  c6 {[%clk 0:02:51]} 9. Qc2 {[%clk 0:03:11]}  Re8 {[%clk 0:02:50]}
10. O-O-O {[%clk 0:03:10]}  b5 {[%clk 0:02:51]} 11. Kb1 {[%clk 0:03:11]}  a5 {[%clk 0:02:52]} 12. g3 {[%clk 0:02:59]}  a4 {[%clk 0:02:50]}
13. Bg2 {[%clk 0:02:57]}  Bd7 {[%clk 0:02:49]} 14. Qc1 {[%clk 0:02:48]}  b4 {[%clk 0:02:49]} 15. c4 {[%clk 0:02:47]}  Na6 {[%clk 0:02:44]}
16. c5 {[%clk 0:02:47]}  Qc7 {[%clk 0:02:42]} 17. f3 {[%clk 0:02:46]}  exf3 {[%clk 0:02:43]} 18. Nxf3 {[%clk 0:02:47]}  Ne4 {[%clk 0:02:43]}
19. Nd2 {[%clk 0:02:39]}  Nf2 {[%clk 0:02:43]} 20. Nf3 {[%clk 0:02:32]}  Bf5+ {[%clk 0:02:44]} 21. Ka1 {[%clk 0:02:33]}  a3 {[%clk 0:02:37]}
22. b3 {[%clk 0:02:32]}  Nxh1 {[%clk 0:02:34]} 23. Rxh1 {[%clk 0:02:33]}  Be4 {[%clk 0:02:35]} 24. Qd2 {[%clk 0:02:21]}  Bxf3 {[%clk 0:02:35]}
25. Bxf3 {[%clk 0:02:21]}  Qe7 {[%clk 0:02:36]} 26. Nf4 {[%clk 0:01:59]}  Qxe3 {[%clk 0:02:37]} 27. Qxe3 {[%clk 0:01:53]}  Rxe3 {[%clk 0:02:38]}
28. Rf1 {[%clk 0:01:49]}  Rae8 {[%clk 0:02:39]} 29. Ng2 {[%clk 0:01:30]}  Rc3 {[%clk 0:02:36]} 30. Kb1 {[%clk 0:01:24]}  Nc7 {[%clk 0:02:37]}
31. Bg4 {[%clk 0:01:17]}  Ne6 {[%clk 0:02:25]} 32. Re1 {[%clk 0:01:14]}  Kf8 {[%clk 0:02:25]} 33. Rd1 {[%clk 0:00:57]}  Rxg3 {[%clk 0:02:25]}
34. Ne1 {[%clk 0:00:52]}  Nxd4 {[%clk 0:02:25]} 35. Bd7 {[%clk 0:00:45]}  Re2 {[%clk 0:02:17]} 36. Rxd4 {[%clk 0:00:38]}  Rxe1+ {[%clk 0:02:14]}
37. Kc2 {[%clk 0:00:39]}  Rg2+ {[%clk 0:02:14]} 38. Rd2 {[%clk 0:00:27]}  Ree2 {[%clk 0:02:13]} 39. Rxe2 {[%clk 0:00:26]}  Rxe2+ {[%clk 0:02:14]}
40. Kb1 {[%clk 0:00:19]}  Rb2+ {[%clk 0:02:15]} 41. Ka1 {[%clk 0:00:20]}  Rc2 {[%clk 0:02:16]} 42. Bxc6 {[%clk 0:00:17]}  Rc1# {[%clk 0:02:18]} 0-1

[Event "2026 Biel Blitz Open"]
[Site "Biel, CH"]
[Date "2026.07.19"]
[Round "9"]
[White "Garcia, Miguel"]
[Black "Jelicic, Hugo"]
[Result "1/2-1/2"]
[Board "40"]
[TimeControl "180+2"]
[WhiteFideId "1317431"]
[BlackFideId "1349040"]
[WhiteElo "1938"]
[BlackElo "1804"]
[WhiteClock "0:00:17"]
[BlackClock "0:00:26"]
[Variant "Standard"]
[EndDate "2026.07.19"]
[EndTime "14:46:51"]

1. Nf3 {[%clk 0:03:03]}  d5 {[%clk 0:03:04]} 2. g3 {[%clk 0:03:03]}  Nf6 {[%clk 0:03:05]} 3. Bg2 {[%clk 0:03:04]}  c5 {[%clk 0:02:52]}
4. d3 {[%clk 0:03:03]}  Nc6 {[%clk 0:02:50]} 5. O-O {[%clk 0:03:02]}  e5 {[%clk 0:02:44]} 6. Nbd2 {[%clk 0:02:59]}  Be7 {[%clk 0:02:44]}
7. e4 {[%clk 0:02:59]}  d4 {[%clk 0:02:45]} 8. Nc4 {[%clk 0:02:56]}  Qc7 {[%clk 0:02:36]} 9. a4 {[%clk 0:02:56]}  O-O {[%clk 0:02:18]}
10. c3 {[%clk 0:02:29]}  Ne8 {[%clk 0:02:07]} 11. Nfd2 {[%clk 0:02:18]}  f5 {[%clk 0:01:49]} 12. f4 {[%clk 0:02:18]}  Be6 {[%clk 0:01:19]}
13. exf5 {[%clk 0:02:13]}  Bxf5 {[%clk 0:01:15]} 14. Bxc6 {[%clk 0:02:08]}  bxc6 {[%clk 0:01:12]} 15. Nxe5 {[%clk 0:02:07]}  Bf6 {[%clk 0:01:06]}
16. Ndc4 {[%clk 0:02:02]}  Nd6 {[%clk 0:01:04]} 17. Nxd6 {[%clk 0:01:46]}  Qxd6 {[%clk 0:01:06]} 18. Nc4 {[%clk 0:01:26]}  Qd5 {[%clk 0:00:58]}
19. Qf3 {[%clk 0:01:25]}  Qxf3 {[%clk 0:00:58]} 20. Rxf3 {[%clk 0:01:25]}  dxc3 {[%clk 0:00:58]} 21. bxc3 {[%clk 0:01:25]}  Bxc3 {[%clk 0:00:59]}
22. Rb1 {[%clk 0:01:12]}  Bg4 {[%clk 0:00:57]} 23. Rf2 {[%clk 0:00:57]}  Bd4 {[%clk 0:00:58]} 24. Be3 {[%clk 0:00:58]}  Rad8 {[%clk 0:00:53]}
25. Bxd4 {[%clk 0:00:54]}  Rxd4 {[%clk 0:00:53]} 26. Ne5 {[%clk 0:00:53]}  Bf5 {[%clk 0:00:53]} 27. Rd2 {[%clk 0:00:49]}  g6 {[%clk 0:00:49]}
28. Rb7 {[%clk 0:00:41]}  c4 {[%clk 0:00:37]} 29. Nxc4 {[%clk 0:00:37]}  Rxd3 {[%clk 0:00:35]} 30. Rxd3 {[%clk 0:00:37]}  Bxd3 {[%clk 0:00:37]}
31. Ne5 {[%clk 0:00:37]}  Be4 {[%clk 0:00:36]} 32. Rxa7 {[%clk 0:00:37]}  Rb8 {[%clk 0:00:35]} 33. Rc7 {[%clk 0:00:31]}  Rb1+ {[%clk 0:00:35]}
34. Kf2 {[%clk 0:00:31]}  Ra1 {[%clk 0:00:29]} 35. Nxc6 {[%clk 0:00:30]}  Bxc6 {[%clk 0:00:30]} 36. Rxc6 {[%clk 0:00:30]}  Rxa4 {[%clk 0:00:30]}
37. h3 {[%clk 0:00:31]}  Ra2+ {[%clk 0:00:31]} 38. Kf3 {[%clk 0:00:32]}  Ra3+ {[%clk 0:00:32]} 39. Kg4 {[%clk 0:00:32]}  Ra5 {[%clk 0:00:33]}
40. Rc7 {[%clk 0:00:30]}  Rf5 {[%clk 0:00:30]} 41. Kf3 {[%clk 0:00:30]}  Ra5 {[%clk 0:00:31]} 42. g4 {[%clk 0:00:23]}  Ra3+ {[%clk 0:00:31]}
43. Kg2 {[%clk 0:00:24]}  Ra2+ {[%clk 0:00:33]} 44. Kg3 {[%clk 0:00:25]}  Ra3+ {[%clk 0:00:30]} 45. Kh4 {[%clk 0:00:26]}  Rf3 {[%clk 0:00:23]}
46. Rc4 {[%clk 0:00:18]}  Kg7 {[%clk 0:00:23]} 47. Rc7+ {[%clk 0:00:17]}  Kg8 {[%clk 0:00:24]} 48. Rc8+ {[%clk 0:00:18]}  Kg7 {[%clk 0:00:25]}
49. Rc7+ {[%clk 0:00:19]}  Kg8 {[%clk 0:00:26]} 50. Rc8+ {[%clk 0:00:00]} 1/2-1/2

[Event "2026 Biel Blitz Open"]
[Site "Biel, CH"]
[Date "2026.07.19"]
[Round "9"]
[White "Bujes, Aurelien"]
[Black "Delion, Helge"]
[Result "0-1"]
[Board "41"]
[TimeControl "180+2"]
[WhiteFideId "1347179"]
[BlackFideId "12914568"]
[WhiteElo "1741"]
[BlackElo "1911"]
[WhiteClock "0:00:16"]
[BlackClock "0:00:09"]
[Variant "Standard"]
[EndDate "2026.07.19"]
[EndTime "14:43:44"]

1. e4 {[%clk 0:03:03]}  e5 {[%clk 0:03:02]} 2. Nf3 {[%clk 0:03:04]}  Nc6 {[%clk 0:03:03]} 3. Bc4 {[%clk 0:03:04]}  Nf6 {[%clk 0:03:03]}
4. d3 {[%clk 0:03:05]}  Bc5 {[%clk 0:03:03]} 5. c3 {[%clk 0:03:05]}  d6 {[%clk 0:03:02]} 6. Bg5 {[%clk 0:03:06]}  h6 {[%clk 0:02:55]}
7. Bh4 {[%clk 0:03:06]}  Bg4 {[%clk 0:02:54]} 8. Nbd2 {[%clk 0:03:06]}  g5 {[%clk 0:02:50]} 9. Bg3 {[%clk 0:02:56]}  Nh5 {[%clk 0:02:22]}
10. b4 {[%clk 0:02:36]}  Bb6 {[%clk 0:02:21]} 11. a4 {[%clk 0:02:35]}  a5 {[%clk 0:02:18]} 12. b5 {[%clk 0:02:33]}  Ne7 {[%clk 0:02:14]}
13. Qb3 {[%clk 0:02:20]}  Rf8 {[%clk 0:02:01]} 14. Bxe5 {[%clk 0:02:10]}  Bxf3 {[%clk 0:01:38]} 15. Nxf3 {[%clk 0:02:11]}  dxe5 {[%clk 0:01:37]}
16. Nxe5 {[%clk 0:02:11]}  Qd6 {[%clk 0:01:25]} 17. d4 {[%clk 0:01:47]}  O-O-O {[%clk 0:01:09]} 18. Nxf7 {[%clk 0:01:42]}  Qf4 {[%clk 0:01:06]}
19. O-O {[%clk 0:01:16]}  Rde8 {[%clk 0:00:48]} 20. g3 {[%clk 0:01:03]}  Qf6 {[%clk 0:00:42]} 21. e5 {[%clk 0:01:01]}  Qf3 {[%clk 0:00:32]}
22. Nxh6 {[%clk 0:00:43]}  Ng6 {[%clk 0:00:22]} 23. Be6+ {[%clk 0:00:42]}  Rxe6 {[%clk 0:00:19]} 24. Qxe6+ {[%clk 0:00:42]}  Kb8 {[%clk 0:00:19]}
25. Qxg6 {[%clk 0:00:41]}  Nf4 {[%clk 0:00:11]} 26. Rfe1 {[%clk 0:00:16]}  Qg2# {[%clk 0:00:09]} 0-1

[Event "2026 Biel Blitz Open"]
[Site "Biel, CH"]
[Date "2026.07.19"]
[Round "9"]
[White "Mousseau, Leo"]
[Black "Alexakis, Dimitrios"]
[Result "0-1"]
[Board "42"]
[TimeControl "180+2"]
[WhiteFideId "34666931"]
[BlackFideId "4200527"]
[WhiteElo "1714"]
[BlackElo "1895"]
[WhiteClock "0:00:07"]
[BlackClock "0:00:14"]
[Variant "Standard"]
[EndDate "2026.07.19"]
[EndTime "14:43:40"]

1. e4 {[%clk 0:03:03]}  c5 {[%clk 0:03:02]} 2. Nf3 {[%clk 0:03:04]}  d6 {[%clk 0:03:02]} 3. d4 {[%clk 0:03:05]}  cxd4 {[%clk 0:03:02]}
4. Nxd4 {[%clk 0:03:06]}  Nf6 {[%clk 0:03:03]} 5. Nc3 {[%clk 0:03:07]}  g6 {[%clk 0:03:03]} 6. Be3 {[%clk 0:03:07]}  Bg7 {[%clk 0:03:04]}
7. f3 {[%clk 0:03:07]}  O-O {[%clk 0:03:01]} 8. Bc4 {[%clk 0:03:07]}  Nc6 {[%clk 0:03:02]} 9. Qd2 {[%clk 0:03:08]}  Bd7 {[%clk 0:02:59]}
10. O-O-O {[%clk 0:03:06]}  Rc8 {[%clk 0:02:57]} 11. Bb3 {[%clk 0:02:50]}  Nxd4 {[%clk 0:02:53]} 12. Bxd4 {[%clk 0:02:50]}  b5 {[%clk 0:02:53]}
13. h4 {[%clk 0:02:48]}  a5 {[%clk 0:02:53]} 14. Nd5 {[%clk 0:02:28]}  Nxd5 {[%clk 0:02:49]} 15. Bxd5 {[%clk 0:02:26]}  e6 {[%clk 0:02:33]}
16. Bxg7 {[%clk 0:01:51]}  Kxg7 {[%clk 0:02:34]} 17. Bb7 {[%clk 0:01:28]}  Rb8 {[%clk 0:02:17]} 18. Qxd6 {[%clk 0:01:04]}  Rxb7 {[%clk 0:02:16]}
19. h5 {[%clk 0:00:57]}  Qc7 {[%clk 0:01:43]} 20. h6+ {[%clk 0:00:57]}  Kg8 {[%clk 0:01:42]} 21. Qe7 {[%clk 0:00:52]}  Qf4+ {[%clk 0:01:37]}
22. Kb1 {[%clk 0:00:51]}  Bc6 {[%clk 0:01:19]} 23. Qc5 {[%clk 0:00:52]}  Rc7 {[%clk 0:01:12]} 24. Rd6 {[%clk 0:00:31]}  Rfc8 {[%clk 0:01:04]}
25. Rhd1 {[%clk 0:00:31]}  Qxh6 {[%clk 0:00:57]} 26. Rd8+ {[%clk 0:00:12]}  Be8 {[%clk 0:00:45]} 27. Qd4 {[%clk 0:00:10]}  Qf8 {[%clk 0:00:31]}
28. Rxc8 {[%clk 0:00:11]}  Rxc8 {[%clk 0:00:31]} 29. g4 {[%clk 0:00:08]}  Qc5 {[%clk 0:00:27]} 30. Qd3 {[%clk 0:00:09]}  b4 {[%clk 0:00:28]}
31. Rh1 {[%clk 0:00:10]}  Bb5 {[%clk 0:00:28]} 32. Qd2 {[%clk 0:00:10]}  Ba4 {[%clk 0:00:21]} 33. Ka1 {[%clk 0:00:11]}  Qxc2 {[%clk 0:00:17]}
34. Qh6 {[%clk 0:00:11]}  b3 {[%clk 0:00:13]} 35. Qxh7+ {[%clk 0:00:11]}  Kf8 {[%clk 0:00:14]} 36. Qh8+ {[%clk 0:00:08]}  Ke7 {[%clk 0:00:15]}
37. Qh4+ {[%clk 0:00:09]}  Ke8 {[%clk 0:00:15]} 38. Qh8+ {[%clk 0:00:10]}  Kd7 {[%clk 0:00:14]} 39. Qh3 {[%clk 0:00:07]}  Qc1+ {[%clk 0:00:14]} 0-1

[Event "2026 Biel Blitz Open"]
[Site "Biel, CH"]
[Date "2026.07.19"]
[Round "9"]
[White "Lupei, Denis"]
[Black "Chantrell, Paul"]
[Result "1-0"]
[Board "43"]
[TimeControl "180+2"]
[WhiteFideId "34611231"]
[BlackFideId "451967"]
[WhiteElo "1890"]
[BlackElo "1749"]
[WhiteClock "0:00:26"]
[BlackClock "0:00:18"]
[Variant "Standard"]
[EndDate "2026.07.19"]
[EndTime "14:38:49"]

1. e4 {[%clk 0:03:03]}  e5 {[%clk 0:03:03]} 2. Nf3 {[%clk 0:03:03]}  Nc6 {[%clk 0:03:05]} 3. Bc4 {[%clk 0:03:04]}  Bc5 {[%clk 0:03:05]}
4. c3 {[%clk 0:03:05]}  Nf6 {[%clk 0:03:05]} 5. d3 {[%clk 0:03:06]}  a6 {[%clk 0:03:04]} 6. a4 {[%clk 0:03:07]}  Ba7 {[%clk 0:03:05]}
7. a5 {[%clk 0:03:04]}  d6 {[%clk 0:03:04]} 8. Nbd2 {[%clk 0:03:05]}  O-O {[%clk 0:03:03]} 9. h3 {[%clk 0:03:05]}  h6 {[%clk 0:02:57]}
10. O-O {[%clk 0:03:00]}  Nh5 {[%clk 0:02:57]} 11. Nxe5 {[%clk 0:02:53]}  Qh4 {[%clk 0:02:58]} 12. Ndf3 {[%clk 0:02:32]}  Qe7 {[%clk 0:02:46]}
13. Ng6 {[%clk 0:02:30]}  Qf6 {[%clk 0:02:28]} 14. Nxf8 {[%clk 0:02:30]}  Kxf8 {[%clk 0:02:28]} 15. Be3 {[%clk 0:02:30]}  Nf4 {[%clk 0:02:19]}
16. Bxf4 {[%clk 0:02:17]}  Qxf4 {[%clk 0:02:19]} 17. Qd2 {[%clk 0:02:18]}  Qf6 {[%clk 0:02:17]} 18. Nh2 {[%clk 0:01:49]}  Be6 {[%clk 0:02:03]}
19. Bxe6 {[%clk 0:01:50]}  fxe6 {[%clk 0:02:03]} 20. Ng4 {[%clk 0:01:46]}  Qg6 {[%clk 0:02:01]} 21. Qf4+ {[%clk 0:01:37]}  Kg8 {[%clk 0:01:59]}
22. Ne3 {[%clk 0:01:29]}  Rf8 {[%clk 0:01:51]} 23. Qg4 {[%clk 0:01:29]}  Qe8 {[%clk 0:01:36]} 24. d4 {[%clk 0:01:28]}  e5 {[%clk 0:01:29]}
25. Nf5 {[%clk 0:01:27]}  g6 {[%clk 0:01:10]} 26. Nxh6+ {[%clk 0:01:26]}  Kh7 {[%clk 0:01:11]} 27. Qh4 {[%clk 0:01:14]}  Kg7 {[%clk 0:01:06]}
28. Ng4 {[%clk 0:01:06]}  exd4 {[%clk 0:00:56]} 29. Qh6+ {[%clk 0:01:06]}  Kf7 {[%clk 0:00:55]} 30. Qh7+ {[%clk 0:01:04]}  Ke6 {[%clk 0:00:53]}
31. f4 {[%clk 0:00:31]}  dxc3+ {[%clk 0:00:46]} 32. Kh1 {[%clk 0:00:32]}  Ne7 {[%clk 0:00:36]} 33. f5+ {[%clk 0:00:31]}  gxf5 {[%clk 0:00:32]}
34. exf5+ {[%clk 0:00:32]}  Nxf5 {[%clk 0:00:24]} 35. Rae1+ {[%clk 0:00:31]}  Kd5 {[%clk 0:00:18]} 36. Rxf5+ {[%clk 0:00:26]} 1-0

[Event "2026 Biel Blitz Open"]
[Site "Biel, CH"]
[Date "2026.07.19"]
[Round "9"]
[White "Leuthold, Cyrill"]
[Black "Aryan Goyal"]
[Result "0-1"]
[Board "44"]
[TimeControl "180+2"]
[WhiteFideId "1333011"]
[BlackFideId "366108825"]
[WhiteElo "1887"]
[BlackElo "1748"]
[WhiteClock "0:00:04"]
[BlackClock "0:00:13"]
[Variant "Standard"]
[EndDate "2026.07.19"]
[EndTime "14:39:22"]

1. d4 {[%clk 0:03:02]}  Nf6 {[%clk 0:03:04]} 2. Nf3 {[%clk 0:03:02]}  e6 {[%clk 0:03:05]} 3. Bf4 {[%clk 0:03:01]}  d5 {[%clk 0:03:06]}
4. c3 {[%clk 0:03:01]}  Bd6 {[%clk 0:03:06]} 5. e3 {[%clk 0:03:01]}  O-O {[%clk 0:03:04]} 6. Nbd2 {[%clk 0:03:01]}  c5 {[%clk 0:03:04]}
7. Bd3 {[%clk 0:02:49]}  Bxf4 {[%clk 0:03:03]} 8. exf4 {[%clk 0:02:49]}  b6 {[%clk 0:03:04]} 9. Qe2 {[%clk 0:02:46]}  a5 {[%clk 0:03:05]}
10. O-O {[%clk 0:02:33]}  Ba6 {[%clk 0:03:06]} 11. Bxa6 {[%clk 0:02:23]}  Nxa6 {[%clk 0:03:06]} 12. g3 {[%clk 0:02:05]}  Qd6 {[%clk 0:02:54]}
13. Rfe1 {[%clk 0:01:59]}  Rfc8 {[%clk 0:02:53]} 14. Rad1 {[%clk 0:01:48]}  cxd4 {[%clk 0:02:52]} 15. Nxd4 {[%clk 0:01:46]}  Nc5 {[%clk 0:02:47]}
16. N2f3 {[%clk 0:01:36]}  Nfe4 {[%clk 0:02:35]} 17. Ne5 {[%clk 0:01:25]}  f6 {[%clk 0:02:31]} 18. Nd3 {[%clk 0:01:21]}  Nxd3 {[%clk 0:01:21]}
19. Qxd3 {[%clk 0:00:59]}  Re8 {[%clk 0:01:15]} 20. Nb5 {[%clk 0:01:01]}  Qc5 {[%clk 0:01:13]} 21. Re2 {[%clk 0:00:42]}  Rad8 {[%clk 0:01:09]}
22. a4 {[%clk 0:00:34]}  e5 {[%clk 0:01:03]} 23. fxe5 {[%clk 0:00:31]}  fxe5 {[%clk 0:00:57]} 24. Qe3 {[%clk 0:00:18]}  Qxe3 {[%clk 0:00:38]}
25. Rxe3 {[%clk 0:00:19]}  Nf6 {[%clk 0:00:17]} 26. Red3 {[%clk 0:00:06]}  Rd7 {[%clk 0:00:09]} 27. Kg2 {[%clk 0:00:07]}  Red8 {[%clk 0:00:06]}
28. h3 {[%clk 0:00:07]}  Ne4 {[%clk 0:00:04]} 29. f3 {[%clk 0:00:07]}  Nc5 {[%clk 0:00:05]} 30. Re3 {[%clk 0:00:05]}  Re8 {[%clk 0:00:04]}
31. Re2 {[%clk 0:00:03]}  Nxa4 {[%clk 0:00:04]} 32. Red2 {[%clk 0:00:04]}  Red8 {[%clk 0:00:04]} 33. c4 {[%clk 0:00:05]}  d4 {[%clk 0:00:05]}
34. b3 {[%clk 0:00:05]}  Nc5 {[%clk 0:00:06]} 35. Rb2 {[%clk 0:00:04]}  Re7 {[%clk 0:00:07]} 36. Kf2 {[%clk 0:00:04]}  Na6 {[%clk 0:00:04]}
37. Re2 {[%clk 0:00:05]}  Nc5 {[%clk 0:00:05]} 38. Rb1 {[%clk 0:00:05]}  Rf7 {[%clk 0:00:04]} 39. g4 {[%clk 0:00:05]}  g6 {[%clk 0:00:05]}
40. h4 {[%clk 0:00:06]}  Kg7 {[%clk 0:00:06]} 41. Kg3 {[%clk 0:00:04]}  Nd3 {[%clk 0:00:07]} 42. Rd2 {[%clk 0:00:05]}  Nc5 {[%clk 0:00:08]}
43. b4 {[%clk 0:00:06]}  axb4 {[%clk 0:00:09]} 44. Rxb4 {[%clk 0:00:06]}  Rdf8 {[%clk 0:00:11]} 45. Rf2 {[%clk 0:00:05]}  Nd3 {[%clk 0:00:12]}
46. Rbb2 {[%clk 0:00:04]}  Nxb2 {[%clk 0:00:13]} 0-1

[Event "2026 Biel Blitz Open"]
[Site "Biel, CH"]
[Date "2026.07.19"]
[Round "9"]
[White "Hirt, Markus"]
[Black "Vedant Nayudu"]
[Result "1/2-1/2"]
[Board "46"]
[TimeControl "180+2"]
[WhiteFideId "1302582"]
[BlackFideId "33369780"]
[WhiteElo "1880"]
[BlackElo "1732"]
[WhiteClock "0:00:36"]
[BlackClock "0:00:28"]
[Variant "Standard"]
[EndDate "2026.07.19"]
[EndTime "14:43:28"]

1. e4 {[%clk 0:03:03]}  c6 {[%clk 0:03:04]} 2. Nf3 {[%clk 0:03:02]}  d5 {[%clk 0:03:05]} 3. d3 {[%clk 0:03:03]}  dxe4 {[%clk 0:03:05]}
4. dxe4 {[%clk 0:03:03]}  Qxd1+ {[%clk 0:03:04]} 5. Kxd1 {[%clk 0:03:04]}  f6 {[%clk 0:03:05]} 6. Ne1 {[%clk 0:02:46]}  e5 {[%clk 0:03:05]}
7. Nd3 {[%clk 0:02:44]}  Be6 {[%clk 0:03:02]} 8. Nd2 {[%clk 0:02:38]}  Nd7 {[%clk 0:03:03]} 9. Be2 {[%clk 0:02:34]}  Nc5 {[%clk 0:03:04]}
10. Nxc5 {[%clk 0:02:27]}  Bxc5 {[%clk 0:03:05]} 11. f3 {[%clk 0:02:27]}  O-O-O {[%clk 0:02:54]} 12. Ke1 {[%clk 0:02:27]}  Ne7 {[%clk 0:02:54]}
13. Nf1 {[%clk 0:02:20]}  Ng6 {[%clk 0:02:46]} 14. g3 {[%clk 0:02:18]}  h5 {[%clk 0:02:48]} 15. Be3 {[%clk 0:02:17]}  Bxe3 {[%clk 0:02:39]}
16. Nxe3 {[%clk 0:02:17]}  h4 {[%clk 0:02:38]} 17. Kf2 {[%clk 0:02:02]}  Rd2 {[%clk 0:02:33]} 18. b3 {[%clk 0:01:54]}  Rhd8 {[%clk 0:02:18]}
19. Rhd1 {[%clk 0:01:50]}  Kc7 {[%clk 0:02:02]} 20. Rxd2 {[%clk 0:01:50]}  Rxd2 {[%clk 0:02:03]} 21. Rd1 {[%clk 0:01:51]}  Rxd1 {[%clk 0:02:01]}
22. Bxd1 {[%clk 0:01:48]}  hxg3+ {[%clk 0:02:00]} 23. hxg3 {[%clk 0:01:49]}  Kd6 {[%clk 0:02:00]} 24. Be2 {[%clk 0:01:45]}  Ne7 {[%clk 0:01:51]}
25. Ke1 {[%clk 0:01:44]}  c5 {[%clk 0:01:41]} 26. Kd2 {[%clk 0:01:41]}  Nc6 {[%clk 0:01:42]} 27. c3 {[%clk 0:01:42]}  b6 {[%clk 0:01:28]}
28. Bc4 {[%clk 0:01:40]}  Bxc4 {[%clk 0:01:17]} 29. Nxc4+ {[%clk 0:01:39]}  Ke6 {[%clk 0:01:19]} 30. Ne3 {[%clk 0:01:38]}  Ne7 {[%clk 0:01:19]}
31. Kd3 {[%clk 0:01:35]}  b5 {[%clk 0:01:02]} 32. a4 {[%clk 0:01:32]}  a6 {[%clk 0:00:56]} 33. axb5 {[%clk 0:01:34]}  axb5 {[%clk 0:00:57]}
34. c4 {[%clk 0:01:22]}  b4 {[%clk 0:00:35]} 35. f4 {[%clk 0:00:59]}  exf4 {[%clk 0:00:28]} 36. gxf4 {[%clk 0:00:36]} 1/2-1/2